Cogmind - Beta 15 @@@ ROGUE MODE // 2025.09.10 @ 23:58:40 Player: odium reigns Result: Destroyed by Y-45 Defender with Beam Rifle Performance ------------- Evolutions (2) 1000 Regions Visited (4) 800 Robots Destroyed (35) 175 Value Destroyed (580) 580 Prototype IDs (2) 40 Alien Tech Used (0) 0 Bonus (0) 0 TOTAL SCORE: 2595 Bonus ------- None Cogmind --------- Core Integrity 0/550 Matter 178/300 Energy 11/100 System Corruption 1% Temperature Cool (15) Movement Core (200) Ox3 Location -8/Materials Parts ------- > --- POWER (1) -------- (None) > --- PROPULSION (4) --- Armored Treads > --- UTILITY (4) ------ Improved Heat Sink Improved Sensor Array Improved Signal Interpreter Hacking Suite > --- WEAPON (2) ------- Advanced Beam Cannon Advanced Beam Cannon > --- INVENTORY (5) ---- Light Deuterium Engine Improved Heat Sink Hardened Medium Armor Plating Peak State ------------ > --- POWER ------------ (None) > --- PROPULSION ------- Armored Treads > --- UTILITY ---------- Improved Heat Sink Improved Sensor Array Improved Signal Interpreter Hacking Suite > --- WEAPON ----------- Advanced Beam Cannon Advanced Beam Cannon > --- INVENTORY -------- Light Deuterium Engine Improved Heat Sink Hardened Medium Armor Plating [Rating: 21] Favorites ----------- Power Light Ion Engine Engine Light Ion Engine Propulsion Light Treads Treads Light Treads Leg Aluminum Leg Utility Transport Network Coupler Device Improved Terrain Scanner Storage Large Storage Unit Processor Transport Network Coupler Hackware Hacking Suite Weapon Improved Light Cannon Energy Gun Medium Laser Energy Cannon Advanced Beam Cannon Ballistic Gun Assault Rifle Ballistic Cannon Improved Light Cannon Build | -11 -10 -9 -9 -8 ------- Run | Yrd Mat Mat Min Mat Slots Evolved 4 | . . 2 . 2 Power . | . . . . . Propulsion 2 | . . 1 . 1 Utility 2 | . . 1 . 1 Weapon . | . . . . . Parts Attached 38 | 7 9 6 1 15 Power 4 | 1 2 . . 1 Engine 4 | 1 2 . . 1 Core . | . . . . . Reactor . | . . . . . Propulsion 11 | 2 3 2 1 3 Treads 8 | . 2 2 1 3 Leg 3 | 2 1 . . . Wheel . | . . . . . Hover . | . . . . . Flight . | . . . . . Utility 11 | 2 2 1 . 6 Device 3 | 1 . . . 2 Storage 4 | 1 1 1 . 1 Processor 3 | . 1 . . 2 Hackware 1 | . . . . 1 Protection . | . . . . . Artifact . | . . . . . Weapon 12 | 2 2 3 . 5 Energy Gun 2 | 2 . . . . Energy Cannon 3 | . . 1 . 2 Ballistic Gun 5 | . 2 . . 3 Ballistic Cannon 2 | . . 2 . . Launcher . | . . . . . Special Weapon . | . . . . . Impact Weapon . | . . . . . Slashing Weapon . | . . . . . Piercing Weapon . | . . . . . Special Melee Weapon . | . . . . . Unidentified Prototypes 2 | . . 1 . 1 Parts Lost 10 | . 3 . . 7 Power 2 | . 1 . . 1 Propulsion 6 | . 1 . . 5 Utility 1 | . 1 . . . Weapon 1 | . . . . 1 Highest Loss Streak 7 | . 3 . . 7 To Critical Strikes . | . . . . . Average Backups 13 | 3 8 13 15 18 Power 1 | . 2 1 1 . Propulsion 1 | 1 2 1 1 . Utility 5 | . 1 4 5 11 Weapon 5 | 1 2 6 7 5 Tool/Special . | . . . . . Unused Backups 29 | . 2 3 2 22 Power 2 | . . 1 . 1 Propulsion . | . . . . . Utility 21 | . 1 1 1 18 Weapon 6 | . 1 1 1 3 Tool/Special . | . . . . . Average Slot Usage (%) 92 | . 92 99 100 85 Engine 10 | . 12 11 11 7 Treads 27 | . 16 33 33 28 Leg 2 | . 10 . . . Device 1 | . 3 . . 2 Storage 17 | . 14 21 22 14 Processor 11 | . 5 11 11 15 Energy Gun 1 | . 4 . . . Energy Cannon 6 | . . 5 11 7 Ballistic Gun 6 | . 23 4 . . Ballistic Cannon 7 | . . 11 11 6 Peak Build Rating 21 | 9 9 14 14 21 Average Rating 12 | 6 6 12 14 16 On Entrance 8 | . 9 7 14 14 Naked Turns . | . . . . . Heaviest Build 111 | 14 16 41 41 111 Greatest Support 80 | 20 40 60 60 80 Greatest Overweight (x) 3 | . 1 . . 3 Average Overweight (x) . | . . . . . Largest Inventory Capacity 25 | 8 10 15 15 25 Average Capacity 14 | 7 8 14 15 20 Most Carried 25 | 8 8 15 15 25 Average Carried 13 | 3 7 14 14 18 Final Capacity 15 | 8 10 15 15 5 Final Carried 15 | 8 8 15 15 3 Class Distribution -------------------- 100% | Mutant Dominant Class ---------------- Mutant | -10/Materials Mutant | -9/Materials Mutant | -9/Mines Mutant | -8/Materials Resources | -11 -10 -9 -9 -8 ----------- Run | Yrd Mat Mat Min Mat Matter Collected 1007 | 285 166 172 26 358 Remotely . | . . . . . Salvage Created 1057 | 181 220 171 48 437 Parts 63 | 9 13 10 8 23 Haulers Intercepted 3 | . 1 . . 2 Recyclers Shooed . | . . . . . Parts Field Recycled . | . . . . . Retrieved Matter . | . . . . . Parts Self-Destructed . | . . . . . Prevented . | . . . . . Kills | -11 -10 -9 -9 -8 ------- Run | Yrd Mat Mat Min Mat Combat Hostiles Destroyed 18 | . 5 5 3 5 Guns 6 | . 5 . . 1 Cannons 12 | . . 5 3 4 Classes Destroyed 11 | 3 4 1 . 3 Worker 2 | 1 . . . 1 Builder 1 | . . . . 1 Tunneler 3 | 3 . . . . Hauler 3 | . 1 . . 2 Recycler 5 | 1 . 1 . 3 Watcher 3 | . 1 1 . 1 Swarmer 11 | . 3 3 3 2 Grunt 4 | . 2 1 . 1 Duelist 1 | . . . . 1 Sentry 1 | . . 1 . . Hunter 1 | . . . . 1 Best Kill Streak 5 | 4 3 5 3 3 Combat Bots Only 3 | . 3 3 3 2 Max Kills in Single Turn 2 | 1 1 2 1 1 Gunslinging . | . . . . . Exploded . | . . . . . Melee . | . . . . . Uniques/NPCs Destroyed . | . . . . . Combat | -11 -10 -9 -9 -8 -------- Run | Yrd Mat Mat Min Mat Hostile Shots Fired 285 | . 82 31 11 161 Missed 86 | . 23 10 6 47 Hits 199 | . 59 21 5 114 Projectile 199 | . 59 21 5 114 Critical Strikes 7 | . 2 1 . 4 Damage Taken 2684 | . 651 239 46 1748 Core 798 | . 203 17 20 558 Absorbed by Shields . | . . . . . Regen/Repaired (Parts) 78 | . . 78 . . Core Remaining (%) 69 | 100 18 . 90 . Volleys Fired 120 | 19 36 17 4 44 Largest 2 | 2 2 2 2 2 Hottest 136 | 90 70 101 101 136 Shots Fired 220 | 38 63 34 8 77 Gun 111 | 38 63 . . 10 Cannon 109 | . . 34 8 67 Launcher . | . . . . . Special . | . . . . . Kinetic 114 | . 45 26 4 39 Thermal 106 | 38 18 8 4 38 Explosive . | . . . . . Electromagnetic . | . . . . . Robot Hit Streak 16 | 11 12 5 3 16 Robot Miss Streak 4 | 4 4 3 2 2 Penetration Max . | . . . . . Secondary Targets 1 | . 1 . . . Max Gunslinging Chain 1 | . 1 . . . Shots Hit Robots 140 | 25 41 18 3 53 Core Hits 49 | 6 13 7 3 20 Critical Kills . | . . . . . Critical Parts Destroyed . | . . . . . Critical Strikes 2 | 1 . . . 1 Burn 1 | 1 . . . . Blast 1 | . . . . 1 Melee Attacks . | . . . . . Impact . | . . . . . Slashing . | . . . . . Piercing . | . . . . . Sneak Attacks . | . . . . . Combat Hostiles . | . . . . . Follow-up Attacks . | . . . . . Damage Inflicted 2267 | 300 461 385 62 1059 Guns 916 | 300 461 . . 155 Cannons 1351 | . . 385 62 904 Explosions . | . . . . . Melee . | . . . . . Ramming . | . . . . . Kinetic 1087 | . 298 262 . 527 Thermal 1180 | 300 163 123 62 532 Explosive . | . . . . . Electromagnetic . | . . . . . Impact . | . . . . . Slashing . | . . . . . Piercing . | . . . . . Highest Corruption 1 | . . . . 1 Average Corruption 1 | . . . . 1 Corruption Purged . | . . . . . Corruption Blocked . | . . . . . Effects 1 | . . . . 1 Energy Discharges 1 | . . . . 1 Overload Shots . | . . . . . Overflow Damage 5 | . . 2 . 3 Projectiles 5 | . . 2 . 3 Explosions . | . . . . . Melee . | . . . . . Knockbacks 6 | . . 3 . 3 Impact . | . . . . . Kinetic 5 | . . 2 . 3 Secondary 1 | . . 1 . . Self-Inflicted Damage . | . . . . . Shots . | . . . . . Rammed . | . . . . . Targets Rammed . | . . . . . Kicked . | . . . . . Crushed . | . . . . . Highest Temperature 351 | 280 351 195 120 261 Average Temperature 107 | 109 153 88 62 90 Received Heat Transfer 1197 | . 333 72 . 792 Effects 3 | . 2 . . 1 Energy Bleed 1 | . 1 . . . Interference 2 | . 1 . . 1 Siege Activations . | . . . . . Martial Activations . | . . . . . Shielding Activations . | . . . . . Robots Disrupted . | . . . . . Combat Hostiles . | . . . . . Robots Corrupted . | . . . . . Combat Hostiles . | . . . . . Parts Fried . | . . . . . Impact Corruptions . | . . . . . Robots Melted . | . . . . . Combat Hostiles . | . . . . . Parts Melted 2 | 1 . . . 1 Heat Transferred 2644 | 868 481 222 111 962 Parts Sabotaged . | . . . . . Parts Stolen . | . . . . . Parts Stripped . | . . . . . Power Chain Reactions . | . . . . . Alert | -11 -10 -9 -9 -8 ------- Run | Yrd Mat Mat Min Mat Maximum Alert Level . | . . . . . Low Security (%) 100 | 100 100 100 100 100 Level 1 . | . . . . . Level 2 . | . . . . . Level 3 . | . . . . . Level 4 . | . . . . . Level 5 . | . . . . . High Security . | . . . . . Max Security . | . . . . . Peak Influence 132 | 15 60 88 104 132 Initial 18 | . 6 . 18 . Average 23 | 2 18 35 40 16 Influence Increases 744 | 25 134 159 86 340 Destroy 0b10 Robot/C 360 | . 100 100 60 100 Destroy 0b10 Robot/NC 85 | 25 10 10 . 40 Destroy Leader 102 | . 24 32 10 36 Successful Hack 12 | . . . . 12 Disable Machine 60 | . . . 15 45 Destroy Structure 5 | . . 2 1 2 Lose Combat Pursuer 120 | . . 15 . 105 Influence Decreases 620 | 15 144 110 135 216 Entered New Map 35 | . 4 . 31 . Time Decay 493 | 15 110 110 104 154 Lost Part 92 | . 30 . . 62 Squads Dispatched 4 | . . 1 . 3 Investigation 1 | . . 1 . . Extermination . | . . . . . Reinforcement 1 | . . . . 1 Assault . | . . . . . Garrison 2 | . . . . 2 Intercept . | . . . . . Searches Triggered . | . . . . . Construction Impeded . | . . . . . Haulers Reinforced . | . . . . . Active Scanning Responses . | . . . . . Cargo Convoy Interrupts . | . . . . . Stealth | -11 -10 -9 -9 -8 --------- Run | Yrd Mat Mat Min Mat Distress Signals 1 | . . . . 1 Communications Jammed . | . . . . . Distress Signals . | . . . . . Times Spotted 40 | . 10 7 5 18 Peak Tracking Total 9 | . 6 3 3 9 Tactical Retreats 3 | . . 1 . 2 Traps | -11 -10 -9 -9 -8 ------- Run | Yrd Mat Mat Min Mat Traps Triggered 1 | . . . . 1 Indirectly . | . . . . . Trap Hack Attempts . | . . . . . Triggered . | . . . . . Disarmed . | . . . . . Reprogrammed . | . . . . . Reused . | . . . . . Traps Extracted . | . . . . . Installed . | . . . . . Triggered . | . . . . . Machines | -11 -10 -9 -9 -8 ---------- Run | Yrd Mat Mat Min Mat Machines Disabled 4 | . . . 1 3 Max in Single Turn 1 | . . . 1 1 Machines Repaired . | . . . . . Machines Dismantled . | . . . . . Machines Sabotaged . | . . . . . Overloaded Fab Kills . | . . . . . Hacking | -11 -10 -9 -9 -8 --------- Run | Yrd Mat Mat Min Mat Machines Accessed 6 | . 1 3 . 2 Terminals 5 | . 1 2 . 2 Fabricators . | . . . . . Repair Stations 1 | . . 1 . . Recycling Units . | . . . . . Scanalyzers . | . . . . . Garrison Access . | . . . . . Total Hacks 15 | . 3 7 . 5 Successful 9 | . 1 4 . 4 Failed 6 | . 2 3 . 1 Catastrophic . | . . . . . Database Lockouts . | . . . . . Manual . | . . . . . Terminals 13 | . 3 5 . 5 Fabricators . | . . . . . Repair Stations 2 | . . 2 . . Recycling Units . | . . . . . Scanalyzers . | . . . . . Garrison Access . | . . . . . Terminal Hacks 7 | . 1 2 . 4 Record 1 | . . 1 . . Alert Level 1 | . . 1 . . Locate Traps 1 | . . . . 1 Surveillance Status 1 | . . . . 1 Hauler Manifests 1 | . . . . 1 Zone Layout 2 | . 1 . . 1 Fabricator Hacks . | . . . . . Repair Station Hacks 2 | . . 2 . . Scan Component 1 | . . 1 . . Repair 1 | . . 1 . . Recycling Unit Hacks . | . . . . . Scanalyzer . | . . . . . Garrison Access Hacks . | . . . . . Unauthorized Hacks . | . . . . . Terminals . | . . . . . Fabricators . | . . . . . Repair Stations . | . . . . . Recycling Units . | . . . . . Scanalyzers . | . . . . . Garrison Access . | . . . . . Data Cores Recovered . | . . . . . Used . | . . . . . Hacking Detections 5 | . 1 3 . 1 Full Trace Events 1 | . . 1 . . Feedback Events . | . . . . . Feedback Blocked . | . . . . . Robot Schematics Acquired . | . . . . . Robots Built . | . . . . . Authchips . | . . . . . Time . | . . . . . Total Robot Build Rating . | . . . . . Part Schematics Acquired . | . . . . . Parts Built . | . . . . . Authchips . | . . . . . Time . | . . . . . Total Part Build Rating . | . . . . . Parts Repaired 1 | . . 1 . . Time 26 | . . 26 . . Parts Recycled . | . . . . . Recycled Matter . | . . . . . Retrieved Matter . | . . . . . Retrieved Components . | . . . . . Parts Scanalyzed . | . . . . . Part Schematics Acquired . | . . . . . Parts Damaged . | . . . . . Bothacking | -11 -10 -9 -9 -8 ------------ Run | Yrd Mat Mat Min Mat Used RIF Installer . | . . . . . Robots Hacked . | . . . . . Non-combat . | . . . . . Combat . | . . . . . Robot Hacks Applied . | . . . . . Relay Couplers Released . | . . . . . Fabnet Peak Effective % . | . . . . . Robots Rewired . | . . . . . Allies Hacked . | . . . . . Hacks Repelled . | . . . . . Allies | -11 -10 -9 -9 -8 -------- Run | Yrd Mat Mat Min Mat Total Allies . | . . . . . Largest Group . | . . . . . Highest-Rated Group . | . . . . . Highest-Rated Ally . | . . . . . Total Orders . | . . . . . Ally Attacks . | . . . . . Total Damage . | . . . . . Kills . | . . . . . Allies Corrupted . | . . . . . Allies Melted . | . . . . . Intel | -11 -10 -9 -9 -8 ------- Run | Yrd Mat Mat Min Mat Active Infowar (turns) 1474 | 56 235 359 280 544 Sensors 98 | . . . . 98 Terrain 141 | 56 85 . . . T.N.C. 1235 | . 150 359 280 446 Robot Analysis Total . | . . . . . Derelict Logs Recovered . | . . . . . Drone Launches . | . . . . . Drone Recoveries . | . . . . . Exploration | -11 -10 -9 -9 -8 ------------- Run | Yrd Mat Mat Min Mat Turns Passed 1733 | 159 366 359 280 569 Spaces Moved 852 | 71 171 161 161 288 Core 159 | 3 . . . 156 Treads 574 | . 120 161 161 132 Legs 119 | 68 51 . . . Wheels . | . . . . . Hover . | . . . . . Flight . | . . . . . Fastest Speed 50 | 50 120 160 160 50 Average Speed 144 | 117 148 160 160 132 Slowest Speed 240 | 120 190 160 160 240 Overloaded Moves . | . . . . . Propulsion Burnouts . | . . . . . Robots Hopped . | . . . . . Potential Cave-ins . | . . . . . Cave-ins Triggered . | . . . . . Exploration Rate (%) 25 | 4 29 14 36 44 Regions Visited 4 Branch Regions 1 Pre-discovered Areas . | . . . . . Known Exits Taken . | . . . . . Unknown Exits Taken 4 | 1 1 1 1 . Scrap Searched 1 | . . . 1 . Spaces Dug . | . . . . . Terrain Destroyed 3 | . . 1 1 1 Melee . | . . . . . Projectile 3 | . . 1 1 1 AOE . | . . . . . Terrain Rammed . | . . . . . Walls Destroyed . | . . . . . Machines Disabled . | . . . . . Actions | -11 -10 -9 -9 -8 --------- Run | Yrd Mat Mat Min Mat Total 1141 | 105 224 231 177 404 Wait 65 | 1 . 28 7 29 Move 848 | 70 170 160 160 288 Hop . | . . . . . Pick Up 41 | 8 1 11 2 19 Fast Attach 25 | 7 7 4 . 7 Attach 8 | . . 1 . 7 Detach 4 | . 1 3 . . Swap 5 | . 2 1 1 1 Drop 25 | . 7 6 3 9 Fire 120 | 19 36 17 4 44 Melee . | . . . . . Ram . | . . . . . Kick . | . . . . . Crush . | . . . . . Escape Stasis . | . . . . . Rewire . | . . . . . Trap . | . . . . . Miscellaneous . | . . . . . Route ------- -11/Scrapyard -10/Materials -9/Materials -9/Mines -8/Materials History --------- Turn | Location | Event 4 | -11/Scrapyard | Discovered new exit (range 15) 160 | -11/Scrapyard | Entered Materials 256 | -10/Materials | Core integrity fell below 50% 279 | -10/Materials | Core integrity fell below 20% 300 | -10/Materials | Lost 3 parts (1p1n1u) 330 | -10/Materials | Build established: Mutant 521 | -10/Materials | Discovered new exit (range 4) 526 | -10/Materials | Entered another Materials area 526 | -9/Materials | Evolved 2 slots: Propulsion x1, Utility x1 527 | -9/Materials | Discovered new exit (range 8) 632 | -9/Materials | Repaired Assault Rifle 885 | -9/Materials | Entered Mines 950 | -9/Mines | Joined a pair of Derelicts in attacking an 0b10 outpost 1136 | -9/Mines | Received a Rocket Launcher from a helpful Derelict 1144 | -9/Mines | Discovered new exit (range 8) 1165 | -9/Mines | Entered Materials 1165 | -8/Materials | Evolved 2 slots: Propulsion x1, Utility x1 1609 | -8/Materials | Garrison activated, responded to threat 1611 | -8/Materials | Released all parts (7) 1614 | -8/Materials | Core integrity fell below 50% 1637 | -8/Materials | Lost 7 parts (1p5n1w) 1637 | -8/Materials | Core integrity fell below 20% 1734 | -8/Materials | Destroyed by Y-45 Defender with Beam Rifle Last Messages --------------- 3x Adv. Beam Cannon 3x Aerolev Unit 01633_ K-01 Serf collects debris. 01635_ M-13 Machinist repairs G-47 Trooper. 01637_ K-01 Serf collects debris. 01642_ Acquired Hacking Suite. 01651_ System corrupted: Energy discharge (-24). 01653_ Acquired Arm. Treads. 01677_ Acquired Imp. Heat Sink. 01679_ Dropped Imp. Weapon Shielding. 01680_ Acquired Imp. Heat Sink. 01681_ Dropped Mining Laser. 01682_ Acquired Imp. Heat Sink. 01686_ U-05 Engineer destroyed. 01698_ Dropped Imp. Heat Sink. 01698_ Acquired Lgt. Deuterium Engine. 01703_ ALERT: Hostiles spotted, dispatching reinforcements to Terminal M011. 01704_ S-10 Pest destroyed. 01719_ Destroyed Flight Unit. Map ----- +----------------------------------------------------+ | ?????????????????????????????????????????????????? | | ?????????????????????????????????????????????????? | | ?????????????????????????????????????????????????? | | ?????????????????????????????????????????????????? | | ?????????????????????????????????????????????????? | | ?????????????????????????????????????????????????? | | ?????????????????????????????????????????????????? | | ?????????????????????????????????????????????????? | | ?????????????????????????????????????????????????? | | ?????????????????????????????????????????????????? | | ?????????????????????????????????????????????????? | | ?????????????????????????????????????????????????? | | ?????????????????????????????????????????????????? | | ?????????????????????????????????????????????????? | | ?????????????????????????????????????????????????? | | ?????????????????????????????????????????????????? | | ???????????????????????#?????????????????????????? | | ???????????????????????# ????????????????????????? | | ???????????????????????# ????????????????????????? | | ???????????????????????# ????????????????????????? | | ????????????####???????# ????????????????????????? | | ????????????#!! ?????# ??#######???????????????? | | ????????????#!! #### ### ! #???????????????? | | ????????????#]] %#= #???????????????? | | ????????????#]] =Y% #???????????????? | | ????????????#!! s @=# #???????????????? | | ????????????#!! ######## !############????? | | ?????????????##????????????# ## #????? | | ???????????????????????????# ## #????? | | ??????????????????????########/#### """ #?##+# | | ????????????????# # """"" ### | | ????????????????# + """"" + ^ | | ????????????????# """ # """"" ### | | ?????????????????#######! """ # """ #?# | | ???????????????????????# """ # #?# | | ???????????????????????# ^""" #######+###?# | | ???????????????????????# """ #????? ????# | | ???????????????????????? #????" ?????+= | | ???????????????????????# #???G ?????#%! | | ?????????????????????? %""" #?? ""??????#! | | ??????????????######### % """ "??##???????# | | ??????????????# """ T???????????# | | ??????????????# "" "???????????# | | ??????????????# "" #??###??????# | | ??????????????# ##?# ????# | | ??????????????# ! ""?? """ ??# | | ???????????????# %! "" T"?# "R" # | | ????????#####??# []=^ """ ""?# " " + | | ????????# **??# !!=%!% "" #??# # | | ????????# ** ?# !!!!]![""" #### ** # | +----------------------------------------------------+ Best States ------------- Heat Dissipation 45 Energy Generation 10 Energy Capacity 250 Matter Stores 300 Matter Capacity 300 Sight Range 16 Robot Scan Range 15 Terrain Scan Range 16 Terrain Scan Density 10 Evasion (%) 55 Targeting Accuracy 5 Recoil Reduction 4 Offensive Hacking 10 Item Schematics ----------------- None Robot Schematics ------------------ None Fabricated ------------ Nothing Repaired ---------- Assault Rifle | 22% | -9/Materials Alien Tech Used ----------------- None Achievements -------------- None Challenges ------------ None Game ------ Seed AuthchipInterceptCleaver Manual? 0 Play Time 00:19:51 Cumulative 74.5 hours Start 2025.09.10 @ 23:39:56 End 2025.09.10 @ 23:58:40 Sessions 1 Manual Loads 0 Difficulty Rogue Special Mode None Game No. 58 Rogue 58 Adventurer 0 Explorer 0 Win Type - Total 0 Types 0/0/0/0/0/0/0/0/0/0 Lore% 19 Gallery% 45 Achievement% 37 Wizard Run 0 Options --------- Layout 0 ASCII 0 Keyboard 0 Movement Mouse Keybinds 0 Fullscreen 1 Font 12/Smallcaps Map View 38x28 Zoom Use 99% Tactical HUD 1 Map Filters NONE Filters NONE Steam SD RUN: 44a5b6df-e757-43b4-885c-ad6b85eb2c74